[Event "VII Lorca Open 2018"]
[Site "Lorca"]
[Date "2018.12.27"]
[Round "2"]
[White "Manu David Suthandram R"]
[Black "Mingarro Carceller, Sergi"]
[Result "0-1"]
[ECO "B50"]
[WhiteElo "2153"]
[BlackElo "2361"]
[Annotator "NA"]
[PlyCount "152"]
[EventDate "2018.12.26"]
[EventType "swiss"]
[EventCountry "ESP"]
[SourceTitle "playchess.com"]
[Source "ChessBase"]
[SourceQuality "1"]
[TimeControl "5400+30"]

1. e4 {[%emt 1:30:30]} c5 {[%emt 1:30:30]} 2. Nf3 {[%emt 0:00:30]} d6 {[%emt 0:00:30]} 3. c3 {[%emt 0:00:30]} Nf6 {[%emt 0:00:30]} 4. Bc4 {[%emt 0:00:30]} Nxe4 {[%emt 0:00:30]} 5. Qa4+ {[%emt 0:00:30]} Nc6 {[%emt 0:00:30]} 6. Bxf7+ {[%emt 0:00:30]} Kxf7 {[%emt 0:00:30]} 7. Qxe4 {[%emt 0:00:30]} g6 {[%emt 0:00:30]} 8. O-O {[%emt 0:00:30]} Bf5 {[%emt 0:00:30]} 9. Qe2 {[%emt 0:00:30]} Bg7 {[%emt 0:00:30]} 10. Rd1 {[%emt 0:00:30]} Rf8 {[%emt 0:00:30]} 11. d4 {[%emt 0:00:30]} cxd4 {[%emt 0:00:30]} 12. cxd4 {[%emt 0:00:30]} Kg8 {[%emt 0:00:30]} 13. h3 {[%emt 0:00:30]} Rc8 {[%emt 0:00:30]} 14. Nc3 {[%emt 0:00:30]} Nb4 {[%emt 0:00:30]} 15. Bg5 {[%emt 0:00:30]} Qa5 {[%emt 0:00:30]} 16. Qxe7 {[%emt 0:00:30]} Qb6 {[%emt 0:00:30]} 17. Qe2 {[%emt 0:00:30]} Rce8 {[%emt 0:00:30]} 18. Qc4+ {[%emt 0:00:30]} Be6 19. Qb5 Bxh3 20. a3 Nc6 {[%emt 0:01:30]} 21. Qxb6 {[%emt 0:01:30]} axb6 {[%emt 0:00:30]} 22. Nb5 {[%emt 0:00:30]} Bg4 {[%emt 0:00:30]} 23. Nxd6 {[%emt 0:00:30]} Re6 {[%emt 0:00:30]} 24. d5 {[%emt 0:00:30]} Rxd6 25. dxc6 Rxd1+ 26. Rxd1 bxc6 27. Rd6 Bxf3 28. gxf3 Rxf3 29. Be3 Bxb2 {[%emt 0:03:00]} 30. Rxc6 {[%emt 0:03:00]} b5 {[%emt 0:00:30]} 31. Rb6 {[%emt 0:00:30]} Bxa3 {[%emt 0:00:30]} 32. Rxb5 {[%emt 0:00:30]} h5 {[%emt 0:00:30]} 33. Kg2 {[%emt 0:00:30]} Rf7 {[%emt 0:00:30]} 34. Rb6 {[%emt 0:00:30]} Kh7 {[%emt 0:00:30]} 35. Rb5 {[%emt 0:00:30]} Bd6 {[%emt 0:00:30]} 36. Rd5 {[%emt 0:00:30]} Bc7 {[%emt 0:00:30]} 37. Rb5 {[%emt 0:00:30]} Bd8 {[%emt 0:00:30]} 38. Rb8 {[%emt 0:00:30]} Bf6 {[%emt 0:00:30]} 39. Rb5 {[%emt 0:00:30]} Rg7 {[%emt 0:00:30]} 40. Rb6 {[%emt 0:00:30]} Rf7 {[%emt 0:00:30]} 41. Rb5 {[%emt 0:00:30]} Kg7 {[%emt 0:00:30]} 42. Kh3 {[%emt 0:00:30]} Rc7 {[%emt 0:00:30]} 43. Ra5 {[%emt 0:00:30]} Kf7 {[%emt 0:00:30]} 44. Rb5 {[%emt 0:00:30]} Rc4 {[%emt 0:00:30]} 45. Rb7+ {[%emt 0:00:30]} Ke6 {[%emt 0:00:30]} 46. Rb6+ {[%emt 0:00:30]} Ke7 {[%emt 0:00:30]} 47. Rb7+ {[%emt 0:00:30]} Kd6 {[%emt 0:00:30]} 48. Rb6+ {[%emt 0:00:30]} Rc6 {[%emt 0:00:30]} 49. Rb5 {[%emt 0:00:30]} Ke6 {[%emt 0:00:30]} 50. Ra5 {[%emt 0:00:30]} Be5 {[%emt 0:00:30]} 51. Rb5 {[%emt 0:00:30]} Rc4 {[%emt 0:00:30]} 52. Kg2 {[%emt 0:00:30]} g5 {[%emt 0:00:30]} 53. Rb6+ {[%emt 0:00:30]} Kf5 {[%emt 0:00:30]} 54. Rb7 {[%emt 0:00:30]} Rg4+ {[%emt 0:00:30]} 55. Kf3 {[%emt 0:00:30]} Ra4 {[%emt 0:00:30]} 56. Rf7+ {[%emt 0:00:30]} Kg6 {[%emt 0:00:30]} 57. Re7 {[%emt 0:00:30]} g4+ {[%emt 0:00:30]} 58. Kg2 {[%emt 0:00:30]} Bf6 {[%emt 0:00:30]} 59. Rd7 {[%emt 0:00:30]} h4 {[%emt 0:00:30]} 60. Rd5 {[%emt 0:00:30]} Re4 {[%emt 0:00:30]} 61. Rd6 {[%emt 0:00:30]} Kf5 {[%emt 0:00:30]} 62. Rd1 {[%emt 0:00:30]} Be5 {[%emt 0:00:30]} 63. Rd7 {[%emt 0:00:30]} h3+ {[%emt 0:00:30]} 64. Kh1 {[%emt 0:00:30]} Ra4 {[%emt 0:00:30]} 65. Rd1 {[%emt 0:00:30]} Ke4 {[%emt 0:00:30]} 66. Kg1 {[%emt 0:00:30]} Kf3 {[%emt 0:00:30]} 67. Bc1 {[%emt 0:00:30]} Ra1 {[%emt 0:00:30]} 68. Rd3+ {[%emt 0:00:30]} Ke4 {[%emt 0:00:30]} 69. Re3+ {[%emt 0:00:30]} Kf5 {[%emt 0:00:30]} 70. Re1 {[%emt 0:00:30]} Bc3 {[%emt 0:00:30]} 71. Rf1 {[%emt 0:00:30]} Ke4 {[%emt 0:00:30]} 72. Kh2 {[%emt 0:00:30]} Bd2 {[%emt 0:00:30]} 73. Rg1 {[%emt 0:00:30]} Rxc1 {[%emt 0:00:30]} 74. Rxg4+ {[%emt 0:00:30]} Bf4+ {[%emt 0:00:30]} 75. Kxh3 {[%emt 0:00:30]} Kf3 {[%emt 0:00:30]} 76. Kh4 {[%emt 0:00:30]} Rh1# {[%emt 0:00:30]} 0-1

[Event "VII Lorca Open 2018"]
[Site "Lorca"]
[Date "2018.12.27"]
[Round "3"]
[White "Vazquez Igarza, Renier"]
[Black "Tubio Agrasar, Pablo"]
[Result "1-0"]
[ECO "B38"]
[WhiteElo "2570"]
[BlackElo "2088"]
[Annotator "ChessBase"]
[PlyCount "77"]
[EventDate "2018.12.26"]
[EventType "swiss"]
[EventCountry "ESP"]
[SourceTitle "playchess.com"]
[Source "ChessBase"]
[SourceQuality "1"]
[TimeControl "5400+30"]

1. Nf3 {[%emt 0:00:00]} Nf6 {[%emt 0:01:00]} 2. d4 {[%emt 0:00:58]} c5 {[%emt 0:01:10]} 3. c4 {[%emt 0:03:05]} g6 {[%emt 0:00:31]} 4. Nc3 {[%emt 0:00:20]} Bg7 {[%emt 0:00:10]} 5. e4 {[%emt 0:00:38]} cxd4 {[%emt 0:00:56]} 6. Nxd4 {[%emt 0:00:07]} Nc6 {[%emt 0:01:57]} 7. Be3 {[%emt 0:00:23]} O-O {[%emt 0:00:45]} 8. Be2 {[%emt 0:00:08]} d6 {[%emt 0:00:54]} 9. O-O {[%emt 0:00:21]} Ne8 {[%emt 0:10:06]} 10. Rc1 {[%emt 0:01:44]} Nc7 {[%emt 0:03:01]} 11. Nb3 {[%emt 0:02:04]} f5 {[%emt 0:08:51]} 12. exf5 {[%emt 0:01:38]} gxf5 {[%emt 0:06:07]} 13. Qd2 {[%emt 0:00:14]} Be6 {[%emt 0:06:48]} 14. Nd5 {[%emt 0:01:18]} Ne5 {[%emt 0:04:24]} 15. Nd4 {[%emt 0:06:41]} Bd7 {[%emt 0:04:53]} 16. h3 {[%emt 0:05:27]} Ng6 {[%emt 0:04:12]} 17. Bg5 {[%emt 0:07:29]} Nxd5 {[%emt 0:08:35]} 18. cxd5 {[%emt 0:00:52]} f4 {[%emt 0:00:19]} 19. Bh5 {[%emt 0:03:56]} Bxd4 {[%emt 0:10:32]} 20. Qxd4 {[%emt 0:00:17]} Rf5 {[%emt 0:00:24]} 21. Bh6 {[%emt 0:03:16]} Ne5 {[%emt 0:00:50]} 22. Bg4 {[%emt 0:00:29]} Rf6 {[%emt 0:00:34]} 23. Bxf4 {[%emt 0:01:38]} Bxg4 {[%emt 0:04:53]} 24. hxg4 {[%emt 0:01:10]} Nd3 {[%emt 0:00:26]} 25. Qxd3 {[%emt 0:01:17]} Rxf4 {[%emt 0:00:07]} 26. Qe3 {[%emt 0:01:45]} Rf7 {[%emt 0:00:08]} 27. a3 {[%emt 0:05:46]} Qb6 {[%emt 0:02:16]} 28. Qxb6 {[%emt 0:02:10]} axb6 {[%emt 0:00:01]} 29. f3 {[%emt 0:01:19]} Ra5 {[%emt 0:00:15]} 30. Rfd1 {[%emt 0:00:03]} b5 {[%emt 0:04:24]} 31. Rd4 {[%emt 0:00:35]} b4 {[%emt 0:01:12]} 32. axb4 {[%emt 0:04:49]} Rb5 {[%emt 0:00:10]} 33. Kf2 {[%emt 0:00:28]} Rg7 {[%emt 0:00:29]} 34. Rh1 {[%emt 0:09:31]} Rf7 {[%emt 0:03:52]} 35. Ke3 {[%emt 0:02:46]} Rf8 {[%emt 0:00:23]} 36. Kd2 {[%emt 0:01:15]} Rc8 {[%emt 0:01:15]} 37. f4 {[%emt 0:03:18]} Kg7 {[%emt 0:00:51]} 38. g5 {[%emt 0:00:20]} Rf8 {[%emt 0:01:56]} 39. Kd3 {[%emt 0:29:55]} 1-0

[Event "VII Lorca Open 2018"]
[Site "Lorca"]
[Date "2018.12.27"]
[Round "3"]
[White "Grigoryan, Karen H."]
[Black "Suarez Uriel, Adrian"]
[Result "1-0"]
[ECO "A11"]
[WhiteElo "2557"]
[BlackElo "2386"]
[Annotator "ChessBase"]
[PlyCount "135"]
[EventDate "2018.12.26"]
[EventType "swiss"]
[EventCountry "ESP"]
[SourceTitle "playchess.com"]
[Source "ChessBase"]
[SourceQuality "1"]
[TimeControl "5400+30"]

1. g3 {[%emt 0:00:00]} Nf6 {[%emt 0:03:29]} 2. Bg2 {[%emt 0:00:00]} d5 {[%emt 0:00:12]} 3. Nf3 {[%emt 0:00:00]} g6 {[%emt 0:00:03]} 4. c4 {[%emt 0:00:45]} c6 {[%emt 0:00:09]} 5. Qa4 {[%emt 0:00:15]} Nbd7 {[%emt 0:01:02]} 6. cxd5 {[%emt 0:00:14]} Nb6 {[%emt 0:00:36]} 7. Qb3 {[%emt 0:01:23]} cxd5 {[%emt 0:00:07]} 8. O-O {[%emt 0:00:29]} Bg7 {[%emt 0:00:07]} 9. d3 {[%emt 0:00:41]} O-O {[%emt 0:00:12]} 10. Nc3 {[%emt 0:00:21]} Re8 {[%emt 0:05:12]} 11. a4 {[%emt 0:00:47]} d4 {[%emt 0:08:38]} 12. Nb5 {[%emt 0:01:58]} e5 {[%emt 0:00:05]} 13. Ng5 {[%emt 0:02:04]} Nbd5 {[%emt 0:03:37]} 14. e4 {[%emt 0:01:29]} dxe3 {[%emt 0:00:15]} 15. Bxe3 {[%emt 0:01:02]} Re7 {[%emt 0:15:52]} 16. Bc5 {[%emt 0:07:30]} Rd7 {[%emt 0:00:22]} 17. Nf3 {[%emt 0:04:12]} a6 {[%emt 0:09:47]} 18. Nc3 {[%emt 0:02:11]} Rc7 {[%emt 0:01:37]} 19. Qa3 {[%emt 0:04:01]} Be6 {[%emt 0:28:19]} 20. Ng5 {[%emt 0:06:58]} Nxc3 {[%emt 0:02:29]} 21. bxc3 {[%emt 0:00:11]} Qxd3 {[%emt 0:03:13]} 22. Nxe6 {[%emt 0:00:20]} fxe6 {[%emt 0:00:01]} 23. Rad1 {[%emt 0:04:35]} Qc4 {[%emt 0:00:05]} 24. Bd6 {[%emt 0:00:11]} Bf8 {[%emt 0:01:10]} 25. Rfe1 {[%emt 0:07:26]} e4 {[%emt 0:00:03]} 26. Bh3 {[%emt 0:00:45]} Re8 {[%emt 0:03:02]} 27. Bxf8 {[%emt 0:04:36]} Rxf8 {[%emt 0:00:01]} 28. Re3 {[%emt 0:00:07]} Kg7 {[%emt 0:01:39]} 29. Rd4 {[%emt 0:01:41]} Qc5 {[%emt 0:00:01]} 30. Qxc5 {[%emt 0:00:28]} Rxc5 {[%emt 0:00:02]} 31. Bxe6 {[%emt 0:00:09]} Re8 {[%emt 0:00:22]} 32. Bh3 {[%emt 0:01:04]} Rce5 {[%emt 0:00:34]} 33. Bg2 {[%emt 0:01:32]} b5 {[%emt 0:01:40]} 34. axb5 {[%emt 0:04:54]} axb5 {[%emt 0:00:01]} 35. Bf1 {[%emt 0:01:52]} Nd5 {[%emt 0:01:13]} 36. Bxb5 {[%emt 0:00:41]} Rb8 {[%emt 0:01:47]} 37. Rexe4 {[%emt 0:01:07]} Rxe4 {[%emt 0:00:14]} 38. Rxd5 {[%emt 0:00:07]} Rb7 {[%emt 0:03:45]} 39. c4 {[%emt 0:00:45]} Rbe7 {[%emt 0:00:11]} 40. Kg2 {[%emt 0:01:01]} R4e5 {[%emt 0:00:55]} 41. Rd3 {[%emt 0:01:44]} g5 {[%emt 0:00:38]} 42. Bc6 {[%emt 0:00:19]} g4 {[%emt 0:01:40]} 43. h3 {[%emt 0:01:19]} gxh3+ {[%emt 0:00:10]} 44. Kxh3 {[%emt 0:00:05]} Re2 {[%emt 0:00:13]} 45. f3 {[%emt 0:01:14]} R7e6 {[%emt 0:00:27]} 46. Be4 {[%emt 0:00:23]} h6 {[%emt 0:03:18]} 47. Rc3 {[%emt 0:01:02]} Ra2 {[%emt 0:02:07]} 48. c5 {[%emt 0:00:10]} Ra7 {[%emt 0:00:02]} 49. c6 {[%emt 0:00:09]} Rc7 {[%emt 0:00:03]} 50. Rc5 {[%emt 0:01:13]} Kf6 {[%emt 0:00:14]} 51. Kg4 {[%emt 0:00:38]} Ke7 {[%emt 0:01:07]} 52. Kh5 {[%emt 0:01:01]} Kd6 {[%emt 0:00:29]} 53. Rf5 {[%emt 0:00:36]} Rg7 {[%emt 0:00:09]} 54. g4 {[%emt 0:00:20]} Ra7 {[%emt 0:00:55]} 55. Rb5 {[%emt 0:01:27]} Rf6 {[%emt 0:01:28]} 56. Kh4 {[%emt 0:05:01]} Rc7 {[%emt 0:01:48]} 57. Rb7 {[%emt 0:01:35]} Rc8 {[%emt 0:00:40]} 58. Kg3 {[%emt 0:00:37]} Rc7 {[%emt 0:00:23]} 59. Kf2 {[%emt 0:03:43]} Re7 {[%emt 0:00:09]} 60. Ke3 {[%emt 0:00:44]} Rf8 {[%emt 0:00:10]} 61. Kd4 {[%emt 0:01:07]} Rh8 {[%emt 0:00:53]} 62. Rxe7 {[%emt 0:00:53]} Kxe7 {[%emt 0:00:01]} 63. Kc5 {[%emt 0:00:07]} Rg8 {[%emt 0:00:53]} 64. Bf5 {[%emt 0:00:26]} Kd8 {[%emt 0:00:06]} 65. Kd6 {[%emt 0:00:07]} Rg7 {[%emt 0:00:02]} 66. Bd7 {[%emt 0:01:09]} Rg6+ {[%emt 0:00:05]} 67. Be6 {[%emt 0:00:05]} Rg7 {[%emt 0:00:10]} 68. f4 {[%emt 0:26:54]} 1-0

[Event "VII Lorca Open 2018"]
[Site "Lorca"]
[Date "2018.12.27"]
[Round "3"]
[White "Gascon Del Nogal, Jose Rafael"]
[Black "Ajay Karthikeyan"]
[Result "0-1"]
[ECO "E70"]
[WhiteElo "2484"]
[BlackElo "2143"]
[Annotator "ChessBase"]
[PlyCount "72"]
[EventDate "2018.12.26"]
[EventType "swiss"]
[EventCountry "ESP"]
[SourceTitle "playchess.com"]
[Source "ChessBase"]
[SourceQuality "1"]
[TimeControl "5400+30"]

1. d4 {[%emt 1:30:30]} Nf6 {[%emt 0:03:40]} 2. c4 {[%emt 0:00:00]} g6 {[%emt 0:00:04]} 3. Nc3 {[%emt 0:00:00]} Bg7 {[%emt 0:00:01]} 4. e4 {[%emt 0:00:00]} d6 {[%emt 0:00:01]} 5. Nge2 {[%emt 0:00:00]} a6 {[%emt 0:00:34]} 6. Ng3 {[%emt 0:00:00]} c6 {[%emt 0:00:29]} 7. Be2 {[%emt 0:00:00]} b5 {[%emt 0:03:05]} 8. O-O {[%emt 0:00:00]} O-O {[%emt 0:03:12]} 9. Be3 {[%emt 0:00:00]} h6 {[%emt 0:03:02]} 10. Bd3 {[%emt 0:00:00]} h5 {[%emt 0:00:30]} 11. f3 {[%emt 0:00:00]} Nbd7 {[%emt 0:00:30]} 12. a3 {[%emt 0:00:00]} bxc4 {[%emt 0:00:30]} 13. Bxc4 {[%emt 0:00:00]} d5 {[%emt 0:00:30]} 14. Ba2 {[%emt 0:00:00]} h4 {[%emt 0:00:30]} 15. Nh1 {[%emt 0:00:00]} dxe4 {[%emt 0:00:30]} 16. fxe4 {[%emt 0:00:00]} h3 {[%emt 0:00:30]} 17. e5 {[%emt 0:00:00]} hxg2 {[%emt 0:00:30]} 18. Kxg2 {[%emt 0:00:00]} Nd5 {[%emt 0:00:30]} 19. Nxd5 {[%emt 0:00:00]} cxd5 {[%emt 0:00:30]} 20. Ng3 {[%emt 0:00:00]} Rb8 {[%emt 0:00:30]} 21. Qd2 {[%emt 0:00:00]} Nb6 {[%emt 0:00:30]} 22. b3 {[%emt 0:00:00]} Qd7 {[%emt 0:00:30]} 23. Kg1 {[%emt 0:00:00]} Qh3 {[%emt 0:00:30]} 24. Rac1 {[%emt 0:00:00]} Be6 {[%emt 0:00:30]} 25. Rc7 {[%emt 0:00:00]} Nd7 {[%emt 0:00:30]} 26. Rc6 {[%emt 0:00:00]} f6 {[%emt 0:00:30]} 27. b4 {[%emt 0:00:00]} fxe5 {[%emt 0:00:30]} 28. Re1 {[%emt 0:00:00]} Kh7 {[%emt 1:08:23]} 29. Ne4 {[%emt 0:00:00]} Qg4+ {[%emt 0:01:08]} 30. Qg2 {[%emt 0:00:00]} Qxg2+ {[%emt 0:00:12]} 31. Kxg2 {[%emt 0:00:00]} dxe4 {[%emt 0:01:21]} 32. Bxe6 {[%emt 0:00:00]} exd4 {[%emt 0:00:12]} 33. Bxd7 {[%emt 0:00:00]} dxe3 {[%emt 0:00:02]} 34. Rxe3 {[%emt 0:00:00]} Rbd8 {[%emt 0:01:05]} 35. Bg4 {[%emt 0:00:00]} Rd2+ {[%emt 0:00:36]} 36. Be2 {[%emt 0:00:00]} Bd4 {[%emt 0:00:35]} 0-1

[Event "VII Lorca Open 2018"]
[Site "Lorca"]
[Date "2018.12.27"]
[Round "3"]
[White "Franco Ocampos, Zenon"]
[Black "Low, Zhen Yu Cyrus"]
[Result "1-0"]
[ECO "D30"]
[WhiteElo "2477"]
[BlackElo "2384"]
[Annotator "ChessBase"]
[PlyCount "145"]
[EventDate "2018.12.26"]
[EventType "swiss"]
[EventCountry "ESP"]
[SourceTitle "playchess.com"]
[Source "ChessBase"]
[SourceQuality "1"]
[TimeControl "5400+30"]

1. c4 {[%emt 0:00:00]} e6 {[%emt 0:00:00]} 2. Nf3 {[%emt 0:00:00]} Nf6 {[%emt 0:00:00]} 3. d4 {[%emt 0:00:10]} d5 {[%emt 0:00:00]} 4. e3 {[%emt 0:00:17]} a6 {[%emt 0:00:10]} 5. b3 {[%emt 0:00:23]} c5 {[%emt 0:00:22]} 6. cxd5 {[%emt 0:01:46]} Nxd5 {[%emt 0:00:46]} 7. Be2 {[%emt 0:06:05]} cxd4 {[%emt 0:05:30]} 8. Nxd4 {[%emt 0:00:18]} Bb4+ {[%emt 0:00:15]} 9. Bd2 {[%emt 0:01:40]} O-O {[%emt 0:04:03]} 10. O-O {[%emt 0:02:06]} Qe7 {[%emt 0:01:02]} 11. Bf3 {[%emt 0:07:08]} Rd8 {[%emt 0:03:53]} 12. Bxd5 {[%emt 0:06:05]} Rxd5 {[%emt 0:03:10]} 13. Qc2 {[%emt 0:00:22]} Bc5 {[%emt 0:06:26]} 14. Nc3 {[%emt 0:04:08]} Rd8 {[%emt 0:00:21]} 15. Nf3 {[%emt 0:12:18]} Nd7 {[%emt 0:05:06]} 16. Ne4 {[%emt 0:01:25]} Bb6 {[%emt 0:03:23]} 17. a3 {[%emt 0:01:42]} a5 {[%emt 0:03:51]} 18. Bc3 {[%emt 0:01:17]} f5 {[%emt 0:05:51]} 19. Ned2 {[%emt 0:01:24]} Nf6 {[%emt 0:00:12]} 20. Nc4 {[%emt 0:04:06]} Bc7 {[%emt 0:00:15]} 21. a4 {[%emt 0:00:17]} Bd7 {[%emt 0:05:37]} 22. Be5 {[%emt 0:02:12]} Bc6 {[%emt 0:00:44]} 23. Bxc7 {[%emt 0:00:31]} Qxc7 {[%emt 0:00:12]} 24. Nfe5 {[%emt 0:00:12]} Bd5 {[%emt 0:06:26]} 25. h3 {[%emt 0:04:00]} Nd7 {[%emt 0:02:03]} 26. Qb2 {[%emt 0:02:03]} Nxe5 {[%emt 0:03:24]} 27. Nxe5 {[%emt 0:00:05]} Bxb3 {[%emt 0:00:20]} 28. Rac1 {[%emt 0:00:33]} Qd6 {[%emt 0:00:41]} 29. Qxb3 {[%emt 0:00:07]} Qxe5 {[%emt 0:00:06]} 30. Qxb7 {[%emt 0:00:03]} Rab8 {[%emt 0:00:38]} 31. Qc7 {[%emt 0:00:22]} Qxc7 {[%emt 0:21:08]} 32. Rxc7 {[%emt 0:00:27]} Rdc8 {[%emt 0:00:04]} 33. Re7 {[%emt 0:01:09]} Re8 {[%emt 0:00:38]} 34. Ra7 {[%emt 0:00:25]} Ra8 {[%emt 0:00:04]} 35. Rb7 {[%emt 0:00:17]} Rab8 {[%emt 0:00:55]} 36. Rfb1 {[%emt 0:00:19]} Rxb7 {[%emt 0:00:01]} 37. Rxb7 {[%emt 0:00:05]} Rd8 {[%emt 0:00:05]} 38. Rb5 {[%emt 0:04:56]} Rd5 {[%emt 0:00:14]} 39. Rxd5 {[%emt 0:00:20]} exd5 {[%emt 0:00:10]} 40. Kf1 {[%emt 0:00:26]} Kf7 {[%emt 0:00:08]} 41. Ke2 {[%emt 0:00:04]} Ke6 {[%emt 0:00:08]} 42. Kd3 {[%emt 0:00:05]} Ke5 {[%emt 0:00:09]} 43. g3 {[%emt 0:03:55]} g6 {[%emt 0:00:19]} 44. f3 {[%emt 0:03:40]} Ke6 {[%emt 0:01:10]} 45. Kd4 {[%emt 0:00:12]} Kd6 {[%emt 0:00:01]} 46. h4 {[%emt 0:06:52]} h6 {[%emt 0:05:47]} 47. g4 {[%emt 0:03:55]} fxg4 {[%emt 0:04:50]} 48. fxg4 {[%emt 0:00:04]} g5 {[%emt 0:04:16]} 49. h5 {[%emt 0:00:15]} Kc6 {[%emt 0:00:01]} 50. Ke5 {[%emt 0:00:59]} Kc5 {[%emt 0:00:01]} 51. Kf6 {[%emt 0:01:22]} Kc4 {[%emt 0:00:06]} 52. Kg6 {[%emt 0:00:03]} Kd3 {[%emt 0:00:03]} 53. Kxh6 {[%emt 0:00:04]} Kxe3 {[%emt 0:00:03]} 54. Kxg5 {[%emt 0:00:09]} d4 {[%emt 0:00:03]} 55. h6 {[%emt 0:00:03]} d3 {[%emt 0:00:03]} 56. h7 {[%emt 0:00:03]} d2 {[%emt 0:00:05]} 57. h8=Q {[%emt 0:00:04]} d1=Q {[%emt 0:00:06]} 58. Qc3+ {[%emt 0:02:59]} Kf2 {[%emt 0:02:58]} 59. Qc5+ {[%emt 0:03:26]} Kg3 {[%emt 0:00:21]} 60. Qc7+ {[%emt 0:00:48]} Kf3 {[%emt 0:00:34]} 61. Qxa5 {[%emt 0:00:49]} Qc1+ {[%emt 0:00:09]} 62. Kh5 {[%emt 0:00:12]} Qh1+ {[%emt 0:01:48]} 63. Kg6 {[%emt 0:00:02]} Qc1 {[%emt 0:01:13]} 64. Qd5+ {[%emt 0:00:27]} Kg3 {[%emt 0:00:13]} 65. Qe5+ {[%emt 0:02:13]} Kf3 {[%emt 0:00:08]} 66. a5 {[%emt 0:00:17]} Qa3 {[%emt 0:00:38]} 67. g5 {[%emt 0:00:22]} Kg4 {[%emt 0:00:22]} 68. Qe6+ {[%emt 0:00:41]} Kf4 {[%emt 0:00:17]} 69. a6 {[%emt 0:00:42]} Qd3+ {[%emt 0:01:41]} 70. Kh6 {[%emt 0:00:05]} Qa3 {[%emt 0:00:05]} 71. Qf7+ {[%emt 0:00:29]} Kg4 {[%emt 0:00:02]} 72. Qe6+ {[%emt 0:05:07]} Kf4 {[%emt 0:00:11]} 73. g6 {[%emt 0:00:20]} 1-0

[Event "VII Lorca Open 2018"]
[Site "Lorca"]
[Date "2018.12.27"]
[Round "3"]
[White "Plaskett, H James"]
[Black "Cuellar Montes, Alejandro"]
[Result "1-0"]
[ECO "B07"]
[WhiteElo "2454"]
[BlackElo "2064"]
[Annotator "ChessBase"]
[PlyCount "71"]
[EventDate "2018.12.26"]
[EventType "swiss"]
[EventCountry "ESP"]
[SourceTitle "playchess.com"]
[Source "ChessBase"]
[SourceQuality "1"]
[TimeControl "5400+30"]

1. e4 {[%emt 1:30:30]} d6 {[%emt 1:30:30]} 2. Nc3 {[%emt 0:00:30]} Nf6 {[%emt 0:00:30]} 3. d4 {[%emt 0:00:30]} e5 {[%emt 0:00:30]} 4. Nge2 {[%emt 0:00:30]} Nbd7 {[%emt 0:00:30]} 5. h3 {[%emt 0:00:30]} Be7 {[%emt 0:00:30]} 6. g4 {[%emt 0:00:30]} h6 {[%emt 0:00:30]} 7. Bg2 {[%emt 0:00:30]} c6 {[%emt 0:00:30]} 8. a4 {[%emt 0:00:30]} b6 {[%emt 0:00:30]} 9. Be3 {[%emt 0:00:30]} Bb7 {[%emt 0:00:30]} 10. Ng3 {[%emt 0:00:30]} g6 {[%emt 0:00:30]} 11. Qd2 {[%emt 0:00:30]} Ng8 {[%emt 0:00:30]} 12. O-O {[%emt 0:00:30]} a6 {[%emt 0:00:30]} 13. f4 {[%emt 0:00:30]} Qc7 {[%emt 0:00:30]} 14. Qf2 {[%emt 0:00:30]} exd4 {[%emt 0:00:30]} 15. Bxd4 {[%emt 0:00:30]} Rh7 {[%emt 0:00:30]} 16. b4 {[%emt 0:00:30]} a5 {[%emt 0:00:30]} 17. b5 {[%emt 0:00:30]} c5 {[%emt 0:00:30]} 18. Be3 {[%emt 0:00:30]} O-O-O {[%emt 0:00:30]} 19. Rad1 {[%emt 0:00:30]} Bf6 {[%emt 0:00:30]} 20. e5 {[%emt 0:00:30]} dxe5 {[%emt 0:00:30]} 21. Bxb7+ {[%emt 0:00:30]} Qxb7 {[%emt 0:00:30]} 22. Nge4 {[%emt 0:00:30]} Be7 {[%emt 0:00:30]} 23. fxe5 {[%emt 0:00:30]} Nxe5 {[%emt 0:00:30]} 24. Bf4 {[%emt 0:00:30]} f6 {[%emt 0:00:30]} 25. Rxd8+ {[%emt 0:00:30]} Kxd8 {[%emt 0:00:30]} 26. Bxe5 {[%emt 0:00:30]} fxe5 {[%emt 0:00:30]} 27. Qg3 {[%emt 0:00:30]} Qb8 {[%emt 0:00:30]} 28. Nd5 {[%emt 0:00:30]} Ke8 {[%emt 0:00:30]} 29. Qf3 {[%emt 0:00:30]} Qd8 {[%emt 0:00:30]} 30. Nxe7 {[%emt 0:00:30]} Qxe7 {[%emt 0:00:30]} 31. Rd1 {[%emt 0:00:30]} Qh4 {[%emt 0:00:30]} 32. Nd6+ {[%emt 0:00:30]} Ke7 {[%emt 0:00:30]} 33. Qb7+ {[%emt 0:00:30]} Ke6 {[%emt 0:00:30]} 34. Qd5+ {[%emt 0:00:30]} Ke7 {[%emt 0:00:30]} 35. Qxe5+ {[%emt 0:00:30]} Kf8 {[%emt 0:00:30]} 36. Rf1+ {[%emt 0:00:30]} 1-0